[Event "85th Tata Steel Challengers 2023"]
[Site "Wijk aan Zee"]
[Date "2023.01.20"]
[Round "10.2"]
[White "Warmerdam, Max"]
[Black "Donchenko, Alexander"]
[Result "0-1"]
[ECO "B53"]
[WhiteElo "2616"]
[BlackElo "2627"]
[Annotator "TA"]
[PlyCount "80"]
[EventDate "2023.01.10"]
[EventType "tourn"]
[EventCountry "NED"]
[SourceTitle "playchess.com"]
[Source "ChessBase"]
[SourceQuality "1"]
[TimeControl "40/6000+30:30/3000+30:900+30"]

{[%evp 9,80,0,-3,-14,-10,-10,-2,-17,-6,0,0,-39,-9,-6,0,-18,7,0,0,0,0,0,0,0,0,0,0,0,0,0,0,-21,-27,-25,-26,-33,-35,-28,-33,-43,-37,-36,-27,-49,-52,-60,-60,-72,-71,-97,-95,-328,-330,-304,-302,-525,-464,-394,-174,-210,-191,-367,-364,-350,-333,-12837,-12835,-12836,-1235,-1039,-978,-763,-377]} 1. e4 {[%emt 0:00:05]} c5 {[%emt 0:00:17]} 2. Nf3 {[%emt 0:00:06]} d6 {[%emt 0:00:08]} 3. d4 {[%emt 0:00:06]} cxd4 {[%emt 0:00:07]} 4. Qxd4 {[%emt 0:00:04]} Nf6 {[%emt 0:01:12]} 5. e5 {[%emt 0:00:22]} Nc6 {[%emt 0:01:39]} 6. Qa4 {[%emt 0:00:06] B53: Sicilian: 2...d6: Lines with Qxd4.} Ng4 {[%emt 0:02:56] [#] White must now prevent ...Qb6.} 7. Bb5 $1 {[%emt 0:00:33] [#]} Ngxe5 $146 {[%emt 0:00:33]} ({Predecessor:} 7... Qb6 8. O-O Ngxe5 9. Nxe5 dxe5 10. Na3 Bd7 11. Nc4 Qc7 12. Be3 a6 13. Nb6 Rd8 {0-1 Belenkaya,D (2341)-Nechaeva,M (2386) RUS-ch Higher League (Women) 71st 2021 (3)}) 8. Nxe5 {[%emt 0:00:06] The position is equal.} dxe5 {[%emt 0:00:07]} 9. Bxc6+ {[%emt 0:00:03]} bxc6 {[%emt 0:00:07]} 10. Be3 {[%emt 0:00:03]} f6 {[%emt 0:02:22]} 11. Nc3 {[%emt 0:01:46]} Kf7 {[%emt 0:11:45]} 12. O-O {[%emt 0:00:38][%cal Oc3e4]} Bf5 {[%emt 0:04:08]} 13. Qxc6 {[%emt 0:11:17]} a6 {[%emt 0:00:33]} (13... Qc8 $5 {[%cal Rc8c6]} 14. Qxc8 Rxc8 $11) 14. Rfd1 {[%emt 0:19:49]} Qc8 {[%emt 0:00:24]} 15. Qxc8 {[%emt 0:06:27]} Rxc8 {[%emt 0:00:15]} 16. Rac1 {[%emt 0:00:03]} g5 {[%emt 0:08:18]} 17. Rd2 {[%emt 0:04:07]} e6 {[%emt 0:18:34]} 18. Na4 {[%emt 0:01:20]} Be7 {[%emt 0:17:19]} 19. c4 {[%emt 0:03:45]} Be4 {[%emt 0:00:31]} 20. c5 {[%emt 0:03:08]} Bc6 {[%emt 0:05:49]} 21. Nb6 {[%emt 0:01:47]} Rcd8 {[%emt 0:00:14]} 22. Nc4 {[%emt 0:03:37][%cal Oe3g5]} Rxd2 {[%emt 0:01:52]} 23. Bxd2 {[%emt 0:00:19]} Rd8 {[%emt 0:02:06]} 24. Be3 {[%emt 0:06:14]} Ke8 {[%emt 0:02:49]} 25. b4 {[%emt 0:32:37]} Kd7 {[%emt 0:01:13]} 26. f3 {[%emt 0:07:34]} Kc7 {[%emt 0:01:16]} 27. Kf2 {[%emt 0:00:57][%cal Oh2h4]} h5 {[%emt 0:05:43]} 28. h4 {[%emt 0:02:23]} gxh4 {[%emt 0:01:59][%cal Bg5h4,Bh4h3,Bh3g2][%mdl 32]} 29. Nd6 {[%emt 0:02:15]} f5 {[%emt 0:02:20]} (29... Bxd6 {simplifies} 30. cxd6+ Rxd6 31. Ke2 Kb7) 30. Re1 $2 {[%emt 0:01:27] [#] Now White is beyond hope.} (30. a4 $17) 30... h3 $1 $19 {[%emt 0:01:22] Threatens to win with ...f4.} 31. Rh1 {[%emt 0:01:44]} hxg2 {[%emt 0:01:59]} 32. Rxh5 {[%emt 0:00:03]} (32. Kxg2 f4 33. Bc1 Bxd6 34. cxd6+ Rxd6 35. Rf1) 32... Rg8 {[%emt 0:04:42]} 33. Kg1 {[%emt 0:00:05]} Rg7 {[%emt 0:00:19] Wards off Rh7} ({Inferior is} 33... Bxf3 34. Rh7 f4 35. Bxf4 $17 (35. Rxe7+ $2 {is the wrong capture.} Kd8 $19)) (33... f4 $142 34. Bd2 Bxf3) 34. Nc4 {[%emt 0:01:28]} Bxf3 {[%emt 0:03:17] A strong pair of Bishops.} 35. Rh6 {[%emt 0:00:26]} (35. Rh3 Bg4 36. Rh8) 35... f4 {[%emt 0:01:13]} 36. Nxe5 {[%emt 0:00:31]} Bg5 {[%emt 0:00:35]} 37. Rh3 $2 {[%emt 0:00:47]} (37. Rh2 Be4 38. Bf2) 37... fxe3 {[%emt 0:02:35] Black is clearly winning.} 38. Nxf3 {[%emt 0:00:05]} e2 {[%emt 0:00:08] ( -> ...Be3+)} 39. Kxg2 {[%emt 0:00:49]} Bh4+ {[%emt 0:00:58]} 40. Kh2 {[%emt 0:00:01]} e1=Q {[%emt 0:01:49] Weighted Error Value: White=0.37/Black=0.10 (very precise)} (40... Rg4 $142 41. Ne1 Bxe1) 0-1

[Event "85th Tata Steel Challengers 2023"]
[Site "Wijk aan Zee"]
[Date "2023.01.20"]
[Round "10.3"]
[White "L'Ami, Erwin"]
[Black "Sindarov, Javokhir"]
[Result "1/2-1/2"]
[ECO "E48"]
[WhiteElo "2627"]
[BlackElo "2654"]
[Annotator "TA"]
[PlyCount "90"]
[EventDate "2023.01.10"]
[EventType "tourn"]
[EventCountry "NED"]
[SourceTitle "playchess.com"]
[Source "ChessBase"]
[SourceQuality "1"]
[TimeControl "40/6000+30:30/3000+30:900+30"]

{[%evp 14,90,0,0,0,0,0,0,-3,0,0,-8,0,0,0,0,-3,0,0,0,0,0,0,0,20,-2,-2,-5,-1,0,0,-21,-20,-20,-18,-20,-16,-19,0,-15,0,0,0,0,0,0,0,0,0,0,0,0,0,0,0,0,0,0,0,0,0,0,0,-10,0,0,0,-18,-8,-3,-1,-30,-30,-30,-30,-30,0,0,0]} 1. d4 {[%emt 0:00:03]} Nf6 {[%emt 0:00:12]} 2. c4 {[%emt 0:00:09]} e6 {[%emt 0:01:06]} 3. Nc3 {[%emt 0:01:16]} Bb4 {[%emt 0:02:09]} 4. e3 {[%emt 0:00:42]} O-O {[%emt 0:02:57]} 5. Bd3 {[%emt 0:00:29]} d5 {[%emt 0:00:39]} 6. Nge2 {[%emt 0:00:55]} dxc4 {[%emt 0:05:06]} 7. Bxc4 {[%emt 0:00:18]} c5 {[%emt 0:00:02]} 8. a3 {[%emt 0:11:53]} Bxc3+ {[%emt 0:06:18] E48: Nimzo-Indian: Rubinstein: 5 Bd3 d5 including 6 Ne2, but excluding 6 a3.} 9. Nxc3 {[%emt 0:01:51]} cxd4 {[%emt 0:01:30]} 10. Qxd4 {[%emt 0:03:23]} Qxd4 {[%emt 0:07:41]} 11. exd4 {[%emt 0:00:11]} Rd8 {[%emt 0:01:21]} 12. Be3 {[%emt 0:03:19] [#]} b6 $146 {[%emt 0:00:47]} ({Predecessor:} 12... Nbd7 13. O-O Nb6 14. Bb3 Bd7 15. Rfd1 Bc6 16. f3 h6 17. Kf2 Nfd5 18. Nxd5 Bxd5 19. Bxd5 Nxd5 {0-1 Boehm,J-Kindermann,S (2480) Dortmunder Schachtage-13 1985 (2)}) 13. f3 {[%emt 0:09:45]} Ba6 {[%emt 0:07:57]} 14. Ba2 {[%emt 0:02:33]} Nc6 {[%emt 0:00:48]} 15. Rd1 {[%emt 0:05:49]} Rd7 {[%emt 0:01:25]} 16. d5 {[%emt 0:11:39]} Nxd5 {[%emt 0:00:07]} 17. Nxd5 {[%emt 0:01:10]} exd5 {[%emt 0:00:10]} 18. Rxd5 {[%emt 0:01:06]} Re7 {[%emt 0:01:57]} 19. Kd2 {[%emt 0:08:47]} Rae8 {[%emt 0:05:41]} 20. Re1 {[%emt 0:03:37]} h6 {[%emt 0:00:22]} 21. Rd6 {[%emt 0:09:26]} Na5 {[%emt 0:09:18] [#] Threatens to win with ...Bc4.} 22. b4 {[%emt 0:03:28]} Nc4+ {[%emt 0:01:10]} 23. Bxc4 {[%emt 0:00:12]} Bxc4 {[%emt 0:00:03]} 24. Rd4 {[%emt 0:00:32]} Bb5 {[%emt 0:00:18]} 25. Rd5 {[%emt 0:00:25]} Bc4 {[%emt 0:01:00]} 26. Rd4 {[%emt 0:00:07]} b5 {[%emt 0:00:07]} 27. a4 {[%emt 0:01:59]} a6 {[%emt 0:00:26][%cal Oc4f1]} 28. a5 {[%emt 0:01:52]} f5 {[%emt 0:01:04]} 29. h4 {[%emt 0:07:05]} g5 {[%emt 0:04:06]} 30. hxg5 {[%emt 0:01:23]} hxg5 {[%emt 0:00:07] [#] And now ...f4 would win.} 31. f4 {[%emt 0:01:35]} g4 {[%emt 0:00:36]} 32. Rd6 {[%emt 0:00:59]} Re4 {[%emt 0:02:38]} 33. g3 {[%emt 0:02:17]} R8e7 {[%emt 0:03:11]} 34. Rd8+ {[%emt 0:00:43]} Kf7 {[%emt 0:00:39]} 35. Rd6 {[%emt 0:00:07]} Re8 {[%emt 0:05:34]} 36. Rd7+ {[%emt 0:03:18]} Ke6 {[%emt 0:00:29]} 37. Rd4 {[%emt 0:00:46]} Rh8 {[%emt 0:00:13]} 38. Bg1 {[%emt 0:02:10]} Bd5 {[%emt 0:01:12]} 39. Rdxe4+ {[%emt 0:09:08]} Bxe4 $11 {[%emt 0:00:30][%mdl 4096] Endgame KRB-KRB} 40. Bc5 {[%emt 0:02:55]} Rh7 {[%emt 0:10:47]} 41. Kc3 {[%emt 0:08:42]} Rh2 {[%emt 0:07:47]} 42. Re3 {[%emt 0:05:36]} Rg2 {[%emt 0:03:39]} 43. Kb3 {[%emt 0:02:53]} Kf6 {[%emt 0:02:11]} 44. Kc3 {[%emt 0:01:22]} Bf3 {[%emt 0:14:20]} 45. Rd3 {[%emt 0:01:58]} Be4 {[%emt 0:20:53] A balanced but interesting game.   Weighted Error Value: White=0.03 (flawless) /Black=0.03 (flawless)} 1/2-1/2

[Event "85th Tata Steel Challengers 2023"]
[Site "Wijk aan Zee"]
[Date "2023.01.20"]
[Round "10.4"]
[White "Ivic, Velimir"]
[Black "Supi, Luis Paulo"]
[Result "0-1"]
[ECO "B90"]
[WhiteElo "2585"]
[BlackElo "2608"]
[Annotator "TA"]
[PlyCount "156"]
[EventDate "2023.01.10"]
[EventType "tourn"]
[EventCountry "NED"]
[SourceTitle "playchess.com"]
[Source "ChessBase"]
[SourceQuality "1"]
[TimeControl "40/6000+30:30/3000+30:900+30"]

{[%evp 14,156,13,17,55,12,50,27,30,32,43,33,14,18,21,17,35,39,48,41,54,5,71,75,112,110,141,135,155,164,162,162,162,160,177,125,143,150,174,166,170,173,156,131,169,175,183,154,181,140,195,165,177,0,189,175,175,162,165,160,200,156,207,190,191,181,172,170,169,166,161,160,229,225,204,149,165,159,156,141,142,98,134,95,94,91,109,91,114,14,30,22,26,0,0,0,22,34,86,19,22,0,75,12,141,0,0,0,0,0,0,0,16,20,22,0,0,0,8,8,6,3,66,33,37,8,8,0,0,0,0,-12,-16,-133,-121,-205,-183,-753,-745,-29977,-29978,-29980,-29981,-29980,-29981]} 1. e4 {[%emt 0:00:16]} c5 {[%emt 0:00:11]} 2. Nf3 {[%emt 0:00:11]} d6 {[%emt 0:00:02]} 3. d4 {[%emt 0:00:14]} cxd4 {[%emt 0:00:02]} 4. Nxd4 {[%emt 0:00:09]} Nf6 {[%emt 0:00:03]} 5. Nc3 {[%emt 0:00:09]} a6 {[%emt 0:00:16]} 6. Be3 {[%emt 0:01:12]} e5 {[%emt 0:00:07]} 7. Nb3 {[%emt 0:00:06]} Be7 {[%emt 0:00:12]} 8. f3 {[%emt 0:00:49]} h5 {[%emt 0:00:57] B90: Sicilian Najdorf: Unusual White 6th moves, 6 Be3 Ng4 and 6 Be3 e5.} 9. Qd2 {[%emt 0:01:51]} (9. Na4 $5 {[%cal Ra4b6]}) 9... Nbd7 {[%emt 0:00:06]} 10. a4 {[%emt 0:04:43]} Nf8 {[%emt 0:03:10] White has an edge.} 11. Be2 {[%emt 0:09:09]} Ng6 {[%emt 0:05:32] [#]} 12. a5 $146 {[%emt 0:05:14]} ({Predecessor:} 12. O-O O-O 13. a5 Be6 14. Rfd1 Qc7 15. Nd5 Nxd5 16. exd5 Bf5 17. c4 Nf4 18. Bf1 {1-0 Barski,R (2434)-Warmerdam,M (2614) EU Corporate-ch rapid 2022 (5)}) 12... Be6 {[%emt 0:15:07]} 13. Nd5 {[%emt 0:03:42]} Bxd5 {[%emt 0:02:51]} 14. exd5 {[%emt 0:00:25]} Qd7 {[%emt 0:06:55]} 15. c4 {[%emt 0:04:31]} O-O {[%emt 0:12:21]} 16. O-O {[%emt 0:02:27]} h4 {[%emt 0:04:26]} 17. Rfd1 {[%emt 0:06:30]} (17. Bd3 $14) 17... h3 {[%emt 0:01:14] [#]} (17... Rfe8 $11) 18. g3 $1 $16 {[%emt 0:01:13]} e4 {[%emt 0:00:35] [#]} 19. f4 $1 {[%emt 0:14:56]} Ng4 {[%emt 0:12:19]} 20. Bd4 {[%emt 0:01:17]} Bf6 {[%emt 0:02:02]} 21. Bf1 {[%emt 0:14:42]} Bxd4+ {[%emt 0:06:28]} 22. Nxd4 {[%emt 0:00:07][%cal Bb3d4,Bd4c2,Bc2e3][%mdl 32]} Nf6 {[%emt 0:01:46]} 23. Ra3 {[%emt 0:02:28]} Rfe8 {[%emt 0:06:18]} 24. Re1 {[%emt 0:00:30]} (24. Nc2 $18) 24... Rab8 {[%emt 0:03:13]} 25. b4 {[%emt 0:04:23]} Qg4 {[%emt 0:04:38]} 26. Qd1 {[%emt 0:03:54]} Qc8 {[%emt 0:01:36]} 27. Nc2 {[%emt 0:01:39]} Ne7 {[%emt 0:00:56]} 28. Qd2 {[%emt 0:02:40]} Qd7 {[%emt 0:02:52]} 29. Ne3 {[%emt 0:01:27]} Red8 {[%emt 0:00:09]} 30. Qf2 {[%emt 0:03:45]} Re8 {[%emt 0:03:17]} 31. Qb2 {[%emt 0:05:59]} Ng6 {[%emt 0:01:51]} (31... b6 $16 32. axb6 Rxb6) 32. Qd4 {[%emt 0:01:11]} Ne7 {[%emt 0:01:35]} 33. Qb2 {[%emt 0:00:56]} Ng6 $1 {[%emt 0:00:28]} 34. Rd1 {[%emt 0:01:42]} Ne7 {[%emt 0:01:13]} 35. Qd2 {[%emt 0:03:40]} Red8 {[%emt 0:00:34]} 36. Qc3 {[%emt 0:02:10]} Ng6 {[%emt 0:00:49]} 37. Qe1 {[%emt 0:01:03]} Re8 {[%emt 0:00:37]} (37... Rdc8 $16 38. Be2 b6) 38. Rc1 {[%emt 0:01:14]} Red8 {[%emt 0:01:04]} 39. Rb1 {[%emt 0:00:46]} Re8 {[%emt 0:00:27]} 40. Rd1 {[%emt 0:00:10]} Red8 {[%emt 0:00:50]} 41. c5 {[%emt 0:12:25]} Ne7 {[%emt 0:03:13]} 42. Rc3 {[%emt 0:09:33]} Rbc8 {[%emt 0:21:13]} (42... Re8 $16 43. cxd6 Nc8) 43. Rcc1 $18 {[%emt 0:06:24]} Rb8 {[%emt 0:04:54]} 44. cxd6 {[%emt 0:03:25]} Nc8 {[%emt 0:01:43]} 45. Rc7 {[%emt 0:05:29]} Qxd6 {[%emt 0:00:49]} 46. Rc5 {[%emt 0:00:56]} Qd7 {[%emt 0:04:55] [#]} 47. g4 $1 {[%emt 0:06:21][%mdl 512] And now g5 would win.} Nd6 {[%emt 0:01:40]} (47... b6 48. axb6) 48. Bxh3 {[%emt 0:01:11]} b6 {[%emt 0:00:21]} 49. axb6 {[%emt 0:00:44]} Rxb6 {[%emt 0:00:04]} 50. Rdc1 {[%emt 0:02:29] Threatens to win with Rc7.} Nfe8 {[%emt 0:06:13] Dodges Rc7} 51. Rc6 {[%emt 0:03:49]} (51. Kh1 $16) 51... Rdb8 $1 $11 {[%emt 0:01:38]} 52. Rxb6 {[%emt 0:00:47]} Rxb6 {[%emt 0:00:02]} 53. Bf1 {[%emt 0:06:31]} Qb7 {[%emt 0:03:42]} 54. Rb1 {[%emt 0:00:33]} Nc7 {[%emt 0:03:26]} 55. Qd2 {[%emt 0:00:16]} Kh7 {[%emt 0:03:46]} (55... a5 $14) 56. Rc1 {[%emt 0:00:51]} ({Better is} 56. Kh1 $16) 56... Nce8 $1 {[%emt 0:00:33]} 57. Rb1 {[%emt 0:00:13]} ({White should try} 57. Kh1 $11) 57... Nc7 $1 $16 {[%emt 0:00:22]} 58. Qd4 {[%emt 0:01:57]} (58. Kh1 $16) 58... Kg8 {[%emt 0:05:12]} (58... a5 $1 $11) 59. Rc1 {[%emt 0:00:38]} (59. Qc5 $16) 59... Rxb4 $11 {[%emt 0:01:32]} 60. Qc5 {[%emt 0:00:20][%csl LRc7,LRd6]} Nce8 {[%emt 0:01:37]} 61. Bxa6 {[%emt 0:00:10][%mdl 64] Deflection} Qb8 $1 {[%emt 0:00:15]} 62. Bf1 {[%emt 0:01:45]} Rb1 {[%emt 0:02:22]} 63. Rxb1 {[%emt 0:00:00]} Qxb1 {[%emt 0:00:00]} 64. Kf2 {[%emt 0:00:00]} Qb2+ {[%emt 0:00:00]} 65. Be2 {[%emt 0:00:00]} Qa1 {[%emt 0:00:00]} 66. Nd1 {[%emt 0:00:00]} Qf6 {[%emt 0:00:00]} 67. Kg3 {[%emt 0:00:00]} Qe7 {[%emt 0:00:00]} (67... Qa1 $11) 68. Qd4 {[%emt 0:00:00]} (68. Qb6 {looks sharper.} Qf6 69. Qa7 g5 70. Qf2) 68... Qc7 {[%emt 0:00:00]} 69. h4 {[%emt 0:00:00]} Nf6 {[%emt 0:00:00]} 70. Nc3 {[%emt 0:00:00]} Nh5+ {[%emt 0:00:00][%mdl 64] Deflection} 71. Kf2 $1 {[%emt 0:13:45]} Nxf4 {[%emt 0:14:39] ...Qe7 is the strong threat.} 72. Bf1 {[%emt 0:00:13]} Qe7 $36 {[%emt 0:01:43][%mdl 2048] Black has some pressure.} 73. g5 {[%emt 0:01:32]} (73. Nxe4 $1 $11 {remains equal.} Nxe4+ 74. Kf3) 73... Ng6 {[%emt 0:01:29] A dynamic duo of knights.} 74. h5 {[%emt 0:04:36]} (74. Bg2 $17) 74... Nh4 {[%emt 0:00:23]} 75. Qd2 $2 {[%emt 0:02:05]} (75. Qb6) 75... Qe5 $19 {[%emt 0:00:38] ( -> ...Qh2+)} 76. Ke2 {[%emt 0:00:30]} Nc4 {[%emt 0:01:56] Black mates.} 77. Qc1 {[%emt 0:00:30]} Qh2+ {[%emt 0:00:15]} 78. Kd1 {[%emt 0:00:22]} Nb2+ {[%emt 0:00:05] Quite a comeback for Black.   Weighted Error Value: White=0.23 (precise) /Black=0.17 (very precise)} 0-1

[Event "85th Tata Steel Challengers 2023"]
[Site "Wijk aan Zee"]
[Date "2023.01.20"]
[Round "10.5"]
[White "Tabatabaei, M. Amin"]
[Black "Beerdsen, Thomas"]
[Result "1-0"]
[ECO "D12"]
[WhiteElo "2686"]
[BlackElo "2515"]
[Annotator "TA"]
[PlyCount "75"]
[EventDate "2023.01.10"]
[EventType "tourn"]
[EventCountry "NED"]
[SourceTitle "playchess.com"]
[Source "ChessBase"]
[SourceQuality "1"]
[TimeControl "40/6000+30:30/3000+30:900+30"]

{[%evp 11,75,16,27,16,21,0,0,-11,-11,-16,23,-28,26,23,23,31,35,35,35,35,35,35,26,0,0,0,14,0,0,0,0,0,0,0,0,0,8,8,48,48,48,0,0,0,0,0,1364,685,6287,6129,29966,7220,6207,6195,29974,29970,29978,29978,29979,29980,29980,29981,29981,29982,29982,29982]} 1. d4 {[%emt 0:00:02]} d5 {[%emt 0:00:06]} 2. c4 {[%emt 0:00:05]} c6 {[%emt 0:00:05]} 3. Nf3 {[%emt 0:00:04]} Nf6 {[%emt 0:00:05]} 4. e3 {[%emt 0:00:03]} Bf5 {[%emt 0:00:13]} 5. Nc3 {[%emt 0:00:05]} e6 {[%emt 0:00:06]} 6. Nh4 {[%emt 0:00:04]} Bg6 {[%emt 0:00:05]} 7. Qb3 {[%emt 0:01:52] And now Nxg6 would win. D12: Slav Defence: 3 Nf3 Nf6 4 e3 Bf5.} Qc7 {[%emt 0:00:15]} 8. Bd2 {[%emt 0:00:26]} Ne4 {[%emt 0:12:46]} 9. Nxe4 {[%emt 0:08:24] The position is equal.} Bxe4 {[%emt 0:00:12]} 10. cxd5 $5 {[%emt 0:00:25][%mdl 4] [#] Leaves trodden paths.} cxd5 $146 {[%emt 0:07:47]} (10... Be7 {with more complications.} 11. d6 Bxd6 12. Bd3 Bd5) ({Predecessor:} 10... exd5 11. f3 Bg6 12. Nxg6 hxg6 13. e4 Nd7 14. exd5 Bd6 15. dxc6 bxc6 16. Bc4 Nf6 {1-0 Kempinski,R (2599)-Motylev,A (2677) EU-ch rapid Warsaw 2012 (6)}) 11. f3 {[%emt 0:06:31]} (11. Qa4+ $142 Qd7 12. Bb5) 11... Bg6 {[%emt 0:01:46]} (11... Bc2 $142 12. Rc1 Bxb3 13. Rxc7 Ba4) 12. Rc1 {[%emt 0:07:14]} Nc6 {[%emt 0:00:59]} 13. Bb5 {[%emt 0:00:16]} (13. Qa4 {feels hotter.} a6 14. Bb5 Kd7 15. g3) 13... Be7 {[%emt 0:04:18]} 14. Nxg6 {[%emt 0:01:58]} hxg6 {[%emt 0:00:05]} 15. Qa4 {[%emt 0:03:27][%cal Rc1c6] Hoping for Rxc6!} (15. g3 {simplifies} a6 16. Bxc6+ bxc6 17. O-O) 15... Kd7 {[%emt 0:10:40]} 16. Ba5 {[%emt 0:37:33]} Qd6 {[%emt 0:08:38]} 17. a3 {[%emt 0:08:45]} Rac8 {[%emt 0:14:52]} 18. Bb4 {[%emt 0:11:13] Dancing on a razor blade.} Qb8 {[%emt 0:00:40]} 19. Bxc6+ {[%emt 0:05:38]} Rxc6 {[%emt 0:05:45]} 20. Rxc6 {[%emt 0:02:09]} bxc6 {[%emt 0:00:06]} 21. Kf2 {[%emt 0:01:58]} Bxb4 {[%emt 0:12:39]} 22. axb4 $11 {[%emt 0:00:01][%mdl 4096] Endgame KQR-KQR} Rc8 {[%emt 0:00:43]} 23. h4 {[%emt 0:01:45]} Rc7 {[%emt 0:01:24]} 24. Rc1 {[%emt 0:00:19]} Qb5 {[%emt 0:02:29]} 25. Qxb5 {[%emt 0:02:00]} cxb5 {[%emt 0:01:12]} 26. Rxc7+ {[%emt 0:01:21]} (26. Rc5 $14 {is more appropriate.}) 26... Kxc7 $14 {[%emt 0:00:06] KP-KP} 27. Kg3 {[%emt 0:00:44]} Kd6 {[%emt 0:08:51]} 28. Kg4 {[%emt 0:00:26]} f6 $2 {[%emt 0:10:49][%mdl 8192]} (28... Ke7 $11) 29. h5 $1 $18 {[%emt 0:03:42]} gxh5+ {[%emt 0:03:54]} 30. Kxh5 {[%emt 0:00:09] Threatening mate with Kg6.} Ke7 {[%emt 0:01:09]} 31. Kg6 {[%emt 0:02:48]} Kf8 {[%emt 0:00:05]} 32. g4 {[%emt 0:00:56]} Kg8 {[%emt 0:00:25] [#]} 33. f4 $1 {[%emt 0:00:59][%cal Bf3f4,Bf4g5,Bg5g6][%mdl 32] White mates.} a6 {[%emt 0:01:36]} 34. g5 {[%emt 0:02:13]} fxg5 {[%emt 0:00:26]} 35. fxg5 {[%emt 0:00:06]} Kf8 {[%emt 0:00:13] [#]} 36. Kh7 $1 {[%emt 0:00:05]} ({And not} 36. b3 Kg8 $11) 36... Kf7 {[%emt 0:00:15]} 37. g6+ {[%emt 0:00:44]} Kf6 {[%emt 0:01:15]} 38. b3 {[%emt 0:00:05] Weighted Error Value: White=0.08 (flawless) /Black=0.52} 1-0